Cogmind - Beta 14 @@@ ROGUE MODE // 2024.10.28 @ 00:47:22 Player: Spoodle Result: Destroyed self with Grenade Launcher Performance ------------- Evolutions (3) 1500 Regions Visited (11) 2200 Robots Destroyed (180) 900 Value Destroyed (6530) 6530 Prototype IDs (36) 720 Alien Tech Used (0) 0 Bonus (2465) 2465 TOTAL SCORE: 14315 Bonus ------- Triggered High Security 1000 High Alert Combat Kills 1972 Follower Combat Kills 255 Entered Garrisons 200 Used RIF Installer 500 Friendly Fire -1462 Cogmind --------- Core Integrity 0/700 Matter 263/300 Energy 290/290 System Corruption 10% Temperature Cool (0) Movement Walking (125) Location -7/Lower Caves Parts ------- > --- POWER (1) -------- Improved Deuterium Engine (fused) > --- PROPULSION (4) --- Improved Carbon-fiber Leg Makeshift Leg Myomer Leg Myomer Leg > --- UTILITY (6) ------ Large Storage Unit Seismic Detector Melee Analysis Suite Advanced Actuator Array Layered Medium Armor Plating Advanced Hardlight Generator (fused) > --- WEAPON (2) ------- Grenade Launcher Makeshift Sword > --- INVENTORY (15) --- Improved Deuterium Engine Light Antimatter Reactor Makeshift Leg Improved VSS Leg Improved VSS Leg Improved Terrain Scanner Active Sensor Spoofer Layered Medium Armor Plating Remote Shield Makeshift Hacking Suite Supersonic Drone Bay (1/1) Cooled Particle Cannon Railgun Railgun Power Sword Peak State ------------ > --- POWER ------------ Improved Deuterium Engine > --- PROPULSION ------- Carbon-fiber Leg Improved Carbon-fiber Leg Myomer Leg Myomer Leg > --- UTILITY ---------- Improved Heat Sink Large Storage Unit Advanced Terrain Scan Processor Layered Medium Armor Plating Advanced Hardlight Generator Supersonic Drone Bay > --- WEAPON ----------- Railgun Railgun > --- INVENTORY -------- Improved Deuterium Engine Light Antimatter Reactor Improved VSS Leg Improved VSS Leg Improved Terrain Scanner Seismic Detector Advanced Actuator Array Active Sensor Spoofer Layered Medium Armor Plating Remote Shield Cooled Particle Cannon Grenade Launcher Axe Axe Power Sword [Rating: 73] Favorites ----------- Power Improved Ion Engine Engine Improved Ion Engine Propulsion Light Treads Treads Light Treads Leg Myomer Leg Wheel Armored Huge Wheel Flight Unit Improved VTOL Module Utility Large Storage Unit Device Seismic Detector Storage Large Storage Unit Processor Machine Analyzer Hackware Relay Coupler [NC] Protection Medium Reflective Plating Weapon Plasma Cannon Energy Gun Heavy Particle Gun Energy Cannon Plasma Cannon Ballistic Gun Railgun Ballistic Cannon Light Cannon Launcher Proton Missile Launcher Special Weapon Mining Laser Impact Weapon Power Maul Slashing Weapon Power Sword Build | -11 -10 -10 -10 -9 -8 -7 -7 -7 -7 -7 -7 ------- Run | Yrd Mat Min Exi Min Mat Fac Was Fac Gar Fac Low Slots Evolved 6 | . . . . . 4 2 . . . . . Power . | . . . . . . . . . . . . Propulsion 2 | . . . . . 1 1 . . . . . Utility 4 | . . . . . 3 1 . . . . . Weapon . | . . . . . . . . . . . . Parts Attached 192 | 7 21 . 3 4 28 19 1 42 45 12 10 Power 12 | 1 3 . . . 2 . . 2 2 2 . Engine 12 | 1 3 . . . 2 . . 2 2 2 . Core . | . . . . . . . . . . . . Reactor . | . . . . . . . . . . . . Propulsion 37 | 2 4 . . . 4 6 1 5 13 1 1 Treads 19 | . 3 . . . 4 5 . 3 4 . . Leg 15 | 2 1 . . . . 1 . . 9 1 1 Wheel 2 | . . . . . . . 1 1 . . . Hover . | . . . . . . . . . . . . Flight 1 | . . . . . . . . 1 . . . Utility 54 | 2 2 . . . 5 4 . 11 19 5 6 Device 25 | 1 . . . . 3 2 . 5 5 4 5 Storage 5 | 1 2 . . . . . . . 2 . . Processor 5 | . . . . . . . . 1 2 1 1 Hackware 3 | . . . . . . . . . 3 . . Protection 16 | . . . . . 2 2 . 5 7 . . Artifact . | . . . . . . . . . . . . Weapon 89 | 2 12 . 3 4 17 9 . 24 11 4 3 Energy Gun 23 | 1 4 . . . 12 5 . 1 . . . Energy Cannon 24 | . 1 . . 2 3 1 . 13 4 . . Ballistic Gun 6 | 1 1 . . . . . . . 2 2 . Ballistic Cannon 9 | . 6 . 2 1 . . . . . . . Launcher 15 | . . . . . 2 3 . 6 2 1 1 Special Weapon 1 | . . . 1 . . . . . . . . Impact Weapon 4 | . . . . . . . . 4 . . . Slashing Weapon 7 | . . . . 1 . . . . 3 1 2 Piercing Weapon . | . . . . . . . . . . . . Special Melee Weapon . | . . . . . . . . . . . . Unidentified Prototypes 7 | . . . . . 4 . . 2 . . 1 Parts Lost 27 | . 1 . . . 1 1 1 3 20 . . Power 2 | . . . . . 1 . . . 1 . . Propulsion 8 | . . . . . . 1 1 . 6 . . Utility 12 | . . . . . . . . 3 9 . . Weapon 5 | . 1 . . . . . . . 4 . . Highest Loss Streak 12 | . 1 . . . 1 1 1 1 12 . . To Critical Strikes 1 | . . . . . . . . . 1 . . Average Slot Usage (%) 91 | . 97 100 92 100 97 92 67 83 85 99 100 Engine 8 | . 14 14 14 14 8 7 7 7 5 6 7 Treads 16 | . 16 28 28 28 27 29 12 6 10 2 . Leg 7 | . 11 . . . . . . . 13 27 30 Wheel 2 | . . . . . . . 4 10 1 . . Device 15 | . 14 14 14 14 17 20 15 16 9 20 27 Storage 8 | . 14 14 14 14 9 7 7 7 6 7 7 Processor 2 | . . . . . . . . 6 3 5 2 Hackware 1 | . . . . . . . . . 7 3 . Protection 8 | . . . . . 16 11 8 10 10 7 7 Energy Gun 4 | . 7 . . . 13 10 10 1 . . . Energy Cannon 3 | . . . . 7 . 3 . 8 5 . . Ballistic Gun 3 | . 7 . . . . . . . 6 14 1 Ballistic Cannon 3 | . 10 28 14 18 3 . . . . . . Slashing Weapon 1 | . . . . 2 . . . . 2 . 13 Peak Build Rating 73 | 7 8 8 9 11 26 41 42 53 63 73 69 Average Rating 35 | 5 7 8 8 9 23 35 36 48 46 66 65 On Entrance 26 | . 7 8 8 9 9 26 41 33 51 61 64 Naked Turns . | . . . . . . . . . . . . Heaviest Build 98 | 14 32 32 32 32 56 71 65 98 98 62 66 Greatest Support 88 | 20 40 40 40 40 60 88 88 56 80 83 88 Greatest Overweight (x) 9 | . 1 . . . . . 2 3 9 . . Average Overweight (x) . | . . . . . . . . 1 . . . Largest Inventory Capacity 15 | 8 15 15 15 15 15 15 15 15 15 15 15 Average Capacity 14 | 7 12 15 15 15 15 15 15 15 14 15 15 Most Carried 15 | 6 15 15 15 15 15 15 14 15 15 15 15 Average Carried 13 | 4 11 15 14 14 14 14 12 14 13 14 14 Final Capacity 15 | 8 15 15 15 15 15 15 15 15 15 15 15 Final Carried 15 | 6 15 15 15 15 15 14 12 15 15 14 15 Class Distribution -------------------- 73% | Mutant 22% | Scavenger-Mutant 3% | Gladiator Dominant Class ---------------- Mutant | -10/Materials Mutant | -10/Mines Mutant | -10/Exiles Mutant | -9/Mines Mutant | -8/Materials Mutant | -7/Factory Mutant | -7/Waste Mutant | -7/Factory Scavenger-Mutant | -7/Garrison Mutant | -7/Factory Gladiator | -7/Lower Caves Resources | -11 -10 -10 -10 -9 -8 -7 -7 -7 -7 -7 -7 ----------- Run | Yrd Mat Min Exi Min Mat Fac Was Fac Gar Fac Low Matter Collected 3380 | 239 472 . . 121 441 204 . 505 791 353 254 Remotely . | . . . . . . . . . . . . Salvage Created 6870 | 89 661 . . 155 821 595 . 2315 1302 833 99 Parts 356 | 13 44 . . 9 44 29 . 102 52 59 4 Haulers Intercepted 12 | . 2 . . . 5 1 . 4 . . . Recyclers Shooed 6 | 1 . . . . 1 . . 3 . 1 . Parts Field Recycled . | . . . . . . . . . . . . Retrieved Matter . | . . . . . . . . . . . . Parts Self-Destructed . | . . . . . . . . . . . . Prevented . | . . . . . . . . . . . . Kills | -11 -10 -10 -10 -9 -8 -7 -7 -7 -7 -7 -7 ------- Run | Yrd Mat Min Exi Min Mat Fac Was Fac Gar Fac Low Combat Hostiles Destroyed 106 | . 17 . . 3 12 9 . 27 25 12 1 Melee 6 | . . . . . . . . 2 4 . . Guns 32 | . 10 . . . 4 6 . 1 3 8 . Cannons 31 | . 7 . . 3 2 . . 5 14 . . AOE 29 | . . . . . 6 3 . 13 2 4 1 Classes Destroyed 16 | 1 6 . . . 2 . . 6 . 1 . Worker 20 | . 1 . . . 4 3 . 7 . 5 . Builder 9 | . . . . . . . . 5 . 4 . Tunneler 7 | 4 . . . . 1 . . 2 . . . Hauler 12 | . 2 . . . 5 1 . 4 . . . Recycler 12 | . 1 . . . 2 . . 7 . 2 . Mechanic 1 | . . . . . . . . 1 . . . Operator 1 | . . . . . 1 . . . . . . Watcher 10 | . 2 . . . 1 1 . 4 . 2 . Swarmer 25 | . 6 . . 3 4 . . 3 4 4 1 Grunt 54 | . 11 . . . 6 7 . 15 9 6 . Brawler 4 | . . . . . . . . 2 1 1 . Duelist 1 | . . . . . . . . 1 . . . Sentry 16 | . . . . . 2 2 . 1 10 1 . Hunter 3 | . . . . . . . . 2 1 . . Programmer 3 | . . . . . . . . 3 . . . Decomposer 3 | . . . . . . . . . . . 3 Infiltrator 1 | . . . . . . . . . . 1 . Best Kill Streak 13 | 3 8 . . 3 7 4 . 13 5 7 1 Combat Bots Only 10 | . 6 . . 3 5 3 . 10 5 5 1 Max Kills in Single Turn 7 | 2 2 . . 1 2 2 . 7 1 3 1 Gunslinging . | . . . . . . . . . . . . Exploded 3 | . . . . . 2 1 . 3 1 1 1 Melee 1 | . . . . . . . . 1 1 . . Uniques/NPCs Destroyed 1 | . . . . 1 . . . . . . . YI-UF0 (-9/Mines) Combat | -11 -10 -10 -10 -9 -8 -7 -7 -7 -7 -7 -7 -------- Run | Yrd Mat Min Exi Min Mat Fac Was Fac Gar Fac Low Hostile Shots Fired 1137 | . 67 . . 10 58 151 6 139 573 127 6 Missed 401 | . 16 . . 4 20 64 1 57 185 52 2 Damage Taken 7955 | . 613 . . 45 608 1492 224 1115 3350 431 77 Core 941 | . 174 . . 6 53 274 . 41 326 30 37 Absorbed by Shields 1046 | . . . . . 20 96 . 128 500 302 . Ignored by Resistances 540 | . . . . . . 181 . 199 160 . . Regen/Repaired (Parts) 65 | . 65 . . . . . . . . . . Core Remaining (%) 72 | 100 . . . 28 90 . . . . . . Volleys Fired 351 | 7 63 . . 6 52 44 . 58 83 36 2 Largest 2 | 2 2 . . 2 2 2 . 2 2 2 1 Hottest 170 | 60 85 . . 95 160 116 . 160 170 70 30 Shots Fired 583 | 14 103 . . 12 96 75 . 93 118 70 2 Gun 355 | 14 72 . . . 62 67 . 22 51 67 . Cannon 181 | . 31 . . 12 29 2 . 46 61 . . Launcher 47 | . . . . . 5 6 . 25 6 3 2 Special . | . . . . . . . . . . . . Kinetic 213 | 7 62 . . 6 20 . . . 51 67 . Thermal 323 | 7 41 . . 6 71 69 . 68 61 . . Explosive 13 | . . . . . 5 . . . 3 3 2 Electromagnetic 34 | . . . . . . 6 . 25 3 . . Robot Hit Streak 24 | 2 16 . . 3 12 11 . 24 8 6 . Robot Miss Streak 6 | 2 4 . . 4 3 3 . 3 3 6 . Penetration Max 1 | . . . . . . . . . . 1 . Secondary Targets 6 | . 1 . . . 1 1 . . . 3 . Max Gunslinging Chain 1 | . 1 . . . 1 1 . . . 1 . Shots Hit Robots 368 | 7 68 . . 8 62 51 . 64 71 34 3 Core Hits 244 | 4 31 . . 4 38 23 . 71 33 33 7 Critical Kills 8 | . . . . . . . . 5 2 1 . Critical Parts Destroyed 6 | . 1 . . . . . . 4 . 1 . Critical Strikes 26 | . 4 . . . 4 2 . 11 3 2 . Burn 10 | . 3 . . . 3 2 . 2 . . . Meltdown 5 | . . . . . . . . 3 2 . . Destroy 3 | . 1 . . . . . . . . 2 . Blast 1 | . . . . . 1 . . . . . . Smash 6 | . . . . . . . . 6 . . . Sever 1 | . . . . . . . . . 1 . . Melee Attacks 62 | . . . . 4 . . . 24 28 1 5 Impact 24 | . . . . . . . . 24 . . . Slashing 38 | . . . . 4 . . . . 28 1 5 Piercing . | . . . . . . . . . . . . Sneak Attacks 11 | . . . . 4 . . . 3 1 . 3 Combat Hostiles 1 | . . . . . . . . . 1 . . Follow-up Attacks 3 | . . . . . . . . . 3 . . Damage Inflicted 15798 | 95 1216 . . 318 2170 1633 . 5060 2939 2067 300 Guns 4578 | 91 615 . . . 817 908 . 338 609 1200 . Cannons 3040 | . 329 . . 76 411 . . 716 1508 . . Explosions 6028 | . 267 . . . 942 700 . 3093 102 867 57 Melee 2118 | . . . . 242 . . . 913 720 . 243 Ramming 34 | 4 5 . . . . 25 . . . . . Kinetic 2664 | 23 551 . . 22 259 . . . 609 1200 . Thermal 6860 | 68 660 . . 54 1372 1120 . 2078 1508 . . Explosive 2605 | . . . . . 539 195 . 855 92 867 57 Electromagnetic 1517 | . . . . . . 293 . 1214 10 . . Impact 913 | . . . . . . . . 913 . . . Slashing 1205 | . . . . 242 . . . . 720 . 243 Piercing . | . . . . . . . . . . . . Highest Corruption 10 | . 2 2 2 2 5 . . 2 7 10 10 Average Corruption 4 | . 1 2 2 2 5 . . 1 5 7 10 Corruption Purged . | . . . . . . . . . . . . Corruption Blocked . | . . . . . . . . . . . . Effects 123 | . 8 3 7 2 20 . . 6 51 14 12 Message Errors 28 | . 2 2 1 1 6 . . 3 8 3 2 Matter Fused 27 | . 1 . 3 1 6 . . 1 12 2 1 Heat Flow Errors 16 | . 1 . 1 . 3 . . . 8 2 1 Energy Discharges 14 | . . . . . 2 . . . 6 1 5 Parts Rejected 2 | . . . . . 1 . . . . 1 . Parts Fused 5 | . . . 1 . 1 . . 1 1 1 . Data Loss (minor) 16 | . 3 1 1 . . . . . 5 4 2 Data Loss (major) 8 | . . . . . . . . 1 6 . 1 Misfires 3 | . . . . . . . . . 3 . . Alerts 2 | . 1 . . . 1 . . . . . . Weapon Failures 2 | . . . . . . . . . 2 . . Overload Shots 25 | . . . . . . . . . 25 . . Effects 3 | . . . . . . . . . 3 . . Energy Bleed 1 | . . . . . . . . . 1 . . Heat Surge 1 | . . . . . . . . . 1 . . Short Circuit 1 | . . . . . . . . . 1 . . Overflow Damage 1115 | . 105 . . 30 113 91 . 653 63 60 . Projectiles 75 | . . . . . 14 . . . 61 . . Explosions 665 | . 105 . . . 99 91 . 310 . 60 . Melee 375 | . . . . 30 . . . 343 2 . . Knockbacks 7 | . 2 . . . 3 . . 2 . . . Impact 2 | . . . . . . . . 2 . . . Kinetic 5 | . 2 . . . 3 . . . . . . Secondary . | . . . . . . . . . . . . Self-Inflicted Damage 555 | . 69 . . . 85 89 . 273 . . 39 Shots 15 | . 1 . . . 3 2 . 8 . . 1 Rammed 4 | . 1 . . . . 3 . . . . . Targets Rammed 7 | 2 1 . . . . 4 . . . . . Kicked 2 | 2 . . . . . . . . . . . Crushed 1 | . . . . . . 1 . . . . . Highest Temperature 315 | . 225 . 118 218 179 107 . 315 301 232 150 Average Temperature 66 | . 54 . 62 117 42 28 . 67 95 82 75 Received Heat Transfer 2328 | . 252 . . . 230 362 . 318 1005 161 . Effects 3 | . . . . 2 . . . . 1 . . Energy Bleed 1 | . . . . . . . . . 1 . . Interference 2 | . . . . 2 . . . . . . . Siege Activations . | . . . . . . . . . . . . Robots Corrupted 5 | . . . . . . . . 5 . . . Combat Hostiles 2 | . . . . . . . . 2 . . . Parts Fried 12 | . . . . . . 3 . 9 . . . Impact Corruptions 11 | . . . . . . . . 11 . . . Robots Melted 6 | . . . . . . . . 4 2 . . Combat Hostiles 6 | . . . . . . . . 4 2 . . Parts Melted 23 | . 3 . . . 4 1 . 12 3 . . Heat Transferred 10219 | 150 1399 . . 111 2376 1913 . 2890 1380 . . Parts Sabotaged . | . . . . . . . . . . . . Parts Stolen . | . . . . . . . . . . . . Parts Stripped . | . . . . . . . . . . . . Power Chain Reactions 1 | . . . . . . . . 1 . . . Alert | -11 -10 -10 -10 -9 -8 -7 -7 -7 -7 -7 -7 ------- Run | Yrd Mat Min Exi Min Mat Fac Was Fac Gar Fac Low Peak Influence 2393 | 20 400 103 . 138 520 281 98 1851 2393 2274 . Initial 1295 | . 13 103 . . 45 141 98 58 1295 1255 . Average 792 | 8 213 103 . 80 333 96 84 658 1883 1930 . Maximum Alert Level 5 | . 2 . . . 2 1 . 5 5 5 . Low Security (%) 36 | 100 33 100 . 100 19 94 100 28 . . . Level 1 14 | . 64 . . . 41 5 . . . . . Level 2 11 | . 1 . . . 39 . . 34 . . . Level 3 3 | . . . . . . . . 18 . . . Level 4 8 | . . . . . . . . 15 19 5 . Level 5 23 | . . . . . . . . 1 80 59 . High Security 2 | . . . . . . . . 1 . 35 . Max Security . | . . . . . . . . . . . . Squads Dispatched 22 | . 3 . . . 1 5 . 6 . 7 . Investigation 9 | . 2 . . . . 3 . 2 . 2 . Extermination 4 | . . . . . . 2 . 2 . . . Reinforcement 5 | . 1 . . . 1 . . 2 . 1 . Assault 4 | . . . . . . . . . . 4 . Garrison . | . . . . . . . . . . . . Intercept . | . . . . . . . . . . . . Searches Triggered . | . . . . . . . . . . . . Construction Impeded 1 | . . . . . . . . 1 . . . Haulers Reinforced . | . . . . . . . . . . . . Active Scanning Responses . | . . . . . . . . . . . . Cargo Convoy Interrupts . | . . . . . . . . . . . . Stealth | -11 -10 -10 -10 -9 -8 -7 -7 -7 -7 -7 -7 --------- Run | Yrd Mat Min Exi Min Mat Fac Was Fac Gar Fac Low Distress Signals 7 | . 3 . . . 1 1 . 1 . 1 . Communications Jammed . | . . . . . . . . . . . . Distress Signals . | . . . . . . . . . . . . Times Spotted 179 | . 27 . . 6 17 33 6 41 29 17 3 Peak Tracking Total 9 | . 6 . . 5 6 6 6 9 7 6 3 Tactical Retreats 10 | . 1 . . 1 2 2 . 3 1 . . Traps | -11 -10 -10 -10 -9 -8 -7 -7 -7 -7 -7 -7 ------- Run | Yrd Mat Min Exi Min Mat Fac Was Fac Gar Fac Low Traps Triggered 23 | . 2 . . . . 1 . 9 9 2 . Indirectly 7 | . . . . . . . . 7 . . . Trap Hack Attempts . | . . . . . . . . . . . . Triggered . | . . . . . . . . . . . . Disarmed . | . . . . . . . . . . . . Reprogrammed . | . . . . . . . . . . . . Reused . | . . . . . . . . . . . . Traps Extracted . | . . . . . . . . . . . . Installed . | . . . . . . . . . . . . Triggered . | . . . . . . . . . . . . Machines | -11 -10 -10 -10 -9 -8 -7 -7 -7 -7 -7 -7 ---------- Run | Yrd Mat Min Exi Min Mat Fac Was Fac Gar Fac Low Machines Disabled 98 | . 1 . . . 3 3 . 62 5 24 . Max in Single Turn 19 | . 1 . . . 3 2 . 19 1 6 . Garrison Access 2 | . . . . . . . . 2 . . . Garrison Relay 4 | . . . . . . . . . 4 . . Machines Repaired . | . . . . . . . . . . . . Machines Dismantled . | . . . . . . . . . . . . Machines Sabotaged . | . . . . . . . . . . . . Overloaded Fab Kills . | . . . . . . . . . . . . Hacking | -11 -10 -10 -10 -9 -8 -7 -7 -7 -7 -7 -7 --------- Run | Yrd Mat Min Exi Min Mat Fac Was Fac Gar Fac Low Machines Accessed 41 | . 9 . 4 . 6 6 . 10 4 2 . Terminals 25 | . 6 . . . 6 2 . 5 4 2 . Fabricators 4 | . . . . . . 2 . 2 . . . Repair Stations 1 | . 1 . . . . . . . . . . Recycling Units 3 | . 2 . . . . 1 . . . . . Scanalyzers . | . . . . . . . . . . . . Garrison Access 4 | . . . . . . 1 . 3 . . . Total Hacks 102 | . 29 . 4 . 23 12 . 22 8 4 . Successful 51 | . 17 . 4 . 17 2 . 8 3 . . Failed 51 | . 12 . . . 6 10 . 14 5 4 . Catastrophic 11 | . . . . . 1 2 . 4 2 2 . Database Lockouts . | . . . . . . . . . . . . Manual 50 | . 18 . 2 . 18 4 . 8 . . . Terminals 77 | . 23 . . . 23 5 . 14 8 4 . Fabricators 7 | . . . . . . 3 . 4 . . . Repair Stations 4 | . 4 . . . . . . . . . . Recycling Units 3 | . 2 . . . . 1 . . . . . Scanalyzers . | . . . . . . . . . . . . Garrison Access 7 | . . . . . . 3 . 4 . . . Terminal Hacks 22 | . 6 . 4 . 6 . . 3 3 . . Record 3 | . . . 3 . . . . . . . . Part Schematic 1 | . . . . . 1 . . . . . . Robot Analysis 3 | . 1 . . . 1 . . 1 . . . Prototype ID Bank 4 | . 3 . . . 1 . . . . . . Open Door 1 | . . . . . . . . . 1 . . Emergency Access Points 2 | . . . . . 1 . . . 1 . . Alert Level 1 | . . . . . 1 . . . . . . Locate Traps 3 | . 2 . . . . . . 1 . . . Zone Layout 2 | . . . . . 1 . . 1 . . . Patrol Navigation 1 | . . . . . . . . . 1 . . Derelict Proto ID Bank 1 | . . . 1 . . . . . . . . Fabricator Hacks 1 | . . . . . . 1 . . . . . Network Status 1 | . . . . . . 1 . . . . . Repair Station Hacks 2 | . 2 . . . . . . . . . . Scan Component 1 | . 1 . . . . . . . . . . Repair 1 | . 1 . . . . . . . . . . Recycling Unit Hacks . | . . . . . . . . . . . . Scanalyzer . | . . . . . . . . . . . . Garrison Access Hacks 3 | . . . . . . . . 3 . . . Unlock Access 1 | . . . . . . . . 1 . . . Seal Access 2 | . . . . . . . . 2 . . . Unauthorized Hacks 23 | . 9 . . . 11 1 . 2 . . . Terminals 20 | . 7 . . . 11 . . 2 . . . Track 4 | . . . . . 2 . . 2 . . . Assimilate 1 | . . . . . 1 . . . . . . Botnet 4 | . 2 . . . 2 . . . . . . Operators 1 | . . . . . 1 . . . . . . Skim 10 | . 5 . . . 5 . . . . . . Fabricators . | . . . . . . . . . . . . Repair Stations . | . . . . . . . . . . . . Recycling Units 3 | . 2 . . . . 1 . . . . . Recyclers 1 | . . . . . . 1 . . . . . Tunnel 2 | . 2 . . . . . . . . . . Scanalyzers . | . . . . . . . . . . . . Garrison Access . | . . . . . . . . . . . . Data Cores Recovered . | . . . . . . . . . . . . Used . | . . . . . . . . . . . . Hacking Detections 31 | . 7 . . . 5 5 . 9 3 2 . Full Trace Events 9 | . . . . . . 3 . 2 2 2 . Feedback Events 1 | . . . . . . . . . 1 . . Corruption 1 | . . . . . . . . . 1 . . Feedback Blocked . | . . . . . . . . . . . . Robot Schematics Acquired . | . . . . . . . . . . . . Robots Built . | . . . . . . . . . . . . Authchips . | . . . . . . . . . . . . Time . | . . . . . . . . . . . . Total Robot Build Rating . | . . . . . . . . . . . . Part Schematics Acquired 1 | . . . . . 1 . . . . . . Parts Built . | . . . . . . . . . . . . Authchips . | . . . . . . . . . . . . Time . | . . . . . . . . . . . . Total Part Build Rating . | . . . . . . . . . . . . Parts Repaired 1 | . 1 . . . . . . . . . . Time 26 | . 26 . . . . . . . . . . Parts Recycled . | . . . . . . . . . . . . Recycled Matter . | . . . . . . . . . . . . Retrieved Matter . | . . . . . . . . . . . . Retrieved Components . | . . . . . . . . . . . . Parts Scanalyzed . | . . . . . . . . . . . . Part Schematics Acquired . | . . . . . . . . . . . . Parts Damaged . | . . . . . . . . . . . . Bothacking | -11 -10 -10 -10 -9 -8 -7 -7 -7 -7 -7 -7 ------------ Run | Yrd Mat Min Exi Min Mat Fac Was Fac Gar Fac Low Used RIF Installer 1 | . . . . . . . . . 1 . . Robots Hacked . | . . . . . . . . . . . . Non-combat . | . . . . . . . . . . . . Combat . | . . . . . . . . . . . . Robot Hacks Applied . | . . . . . . . . . . . . Relay Couplers Released 17 | . . . . . . . . 4 13 . . Machine Destruction 13 | . . . . . . . . . 13 . . Programmers 4 | . . . . . . . . 4 . . . Attached 3 | . . . . . . . . . 3 . . Fabnet Peak Effective % . | . . . . . . . . . . . . Robots Rewired 3 | . . . 3 . . . . . . . . Allies Hacked . | . . . . . . . . . . . . Hacks Repelled . | . . . . . . . . . . . . Allies | -11 -10 -10 -10 -9 -8 -7 -7 -7 -7 -7 -7 -------- Run | Yrd Mat Min Exi Min Mat Fac Was Fac Gar Fac Low Total Allies 8 | . . . 3 . 1 . 1 . 3 . . Largest Group 3 | . . . 3 3 1 . 1 . 2 1 . Highest-Rated Group 157 | . . . 24 24 10 . 31 . 157 62 . Highest-Rated Ally 95 | . . . 8 8 10 . 31 . 95 62 . Total Orders 3 | . . . . . . . . . . 1 2 EXPLORE 2 | . . . . . . . . . . 1 1 RETURN 1 | . . . . . . . . . . . 1 Ally Attacks 36 | . . . . 12 . . 4 . 5 15 . Total Damage 898 | . . . . 112 . . 40 . 85 661 . Kills 10 | . . . . 2 . . . . 2 6 . Allies Corrupted . | . . . . . . . . . . . . Allies Melted . | . . . . . . . . . . . . Intel | -11 -10 -10 -10 -9 -8 -7 -7 -7 -7 -7 -7 ------- Run | Yrd Mat Min Exi Min Mat Fac Was Fac Gar Fac Low Robot Analysis Total 3 | . 1 . . . 1 . . 1 . . . Derelict Logs Recovered 3 | . . 2 . . . . . . . . 1 Drone Launches 2 | . . . . . . . . . . 1 1 Drone Recoveries 2 | . . . . . . . . . . 1 1 Exploration | -11 -10 -10 -10 -9 -8 -7 -7 -7 -7 -7 -7 ------------- Run | Yrd Mat Min Exi Min Mat Fac Was Fac Gar Fac Low Turns Passed 9097 | 114 1035 200 530 200 990 1411 149 1629 1980 497 362 Spaces Moved 4982 | 64 558 123 292 101 348 729 114 1033 1072 289 259 Core 20 | 12 . . . . . . . . 8 . . Treads 2158 | . 305 123 292 101 348 729 32 . 228 . . Legs 1525 | 52 253 . . . . . . . 672 289 259 Wheels 1279 | . . . . . . . 82 1033 164 . . Hover . | . . . . . . . . . . . . Flight . | . . . . . . . . . . . . Fastest Speed 50 | 50 120 160 160 160 160 160 115 100 50 120 120 Average Speed 141 | 106 142 160 160 160 160 160 128 120 145 120 122 Slowest Speed 750 | 120 190 160 160 160 160 160 160 145 750 120 125 Overloaded Moves . | . . . . . . . . . . . . Propulsion Burnouts . | . . . . . . . . . . . . Robots Hopped . | . . . . . . . . . . . . Cave-ins Triggered . | . . . . . . . . . . . . Exploration Rate (%) 47 | 4 88 27 70 14 40 22 82 33 97 22 65 Regions Visited 11 Branch Regions 4 Pre-discovered Areas 5 | . 2 1 1 . 1 . . . . . . Known Exits Taken 4 | . . 1 . 1 1 . . 1 . . . Unknown Exits Taken 4 | 1 1 . 1 . . . . . . 1 . Scrap Searched 4 | . . . . 1 . . . . . . 3 Spaces Dug 18 | . . . . . . . . 7 1 1 9 Terrain Destroyed 646 | . 9 . . . 86 37 . 363 30 112 9 Melee 11 | . . . . . . . . 7 1 1 2 Projectile 29 | . . . . . 2 . . . 10 17 . AOE 606 | . 9 . . . 84 37 . 356 19 94 7 Terrain Rammed . | . . . . . . . . . . . . Walls Destroyed . | . . . . . . . . . . . . Machines Disabled . | . . . . . . . . . . . . Actions | -11 -10 -10 -10 -9 -8 -7 -7 -7 -7 -7 -7 --------- Run | Yrd Mat Min Exi Min Mat Fac Was Fac Gar Fac Low Total 6338 | 92 693 126 357 121 682 895 117 1261 1334 366 294 Wait 503 | 5 29 4 4 3 231 81 1 83 35 15 12 Move 4969 | 63 557 122 291 100 347 729 113 1032 1068 288 259 Hop . | . . . . . . . . . . . . Pick Up 89 | 8 12 . 3 2 9 6 . 9 33 5 2 Fast Attach 62 | 5 4 . . . 6 5 . 13 22 5 2 Attach 31 | 2 . . 2 . 5 3 1 4 14 . . Detach 16 | . . . 2 . 4 1 . 2 5 2 . Swap 99 | . 17 . 1 4 17 11 . 25 9 7 8 Drop 86 | . 10 . 3 2 11 11 2 11 25 7 4 Fire 351 | 7 63 . . 6 52 44 . 58 83 36 2 Melee 59 | . . . . 4 . . . 24 25 1 5 Ram . | . . . . . . . . . . . . Kick 2 | 2 . . . . . . . . . . . Crush 5 | . 1 . . . . 4 . . . . . Escape Stasis 15 | . . . . . . . . . 15 . . Rewire 51 | . . . 51 . . . . . . . . Trap . | . . . . . . . . . . . . Miscellaneous . | . . . . . . . . . . . . Route ------- -11/Scrapyard -10/Materials (discovered 5 exits: *Mat x3 / [*Min] / Sub) -10/Mines (discovered 4 exits: *Mat x2 / *Exi / Sub) -10/Exiles -9/Mines (discovered 2 exits: *Mat x2) -8/Materials (discovered 3 exits: *Fac x3) -7/Factory (discovered 3 exits: *Fac x3) -7/Waste -7/Factory (discovered 3 exits: *Fac x2 / Gar) -7/Garrison (discovered 3 exits: *Fac x3) -7/Factory -7/Lower Caves (discovered 1 exit: Low) History --------- Turn | Location | Event 25 | -11/Scrapyard | Discovered new exit (range 16) 115 | -11/Scrapyard | Entered Materials 327 | -10/Materials | Build established: Mutant 541 | -10/Materials | Learned location of 1 exit from Storage 581 | -10/Materials | Learned location of 1 exit from Recycling 604 | -10/Materials | Core integrity fell below 50% 607 | -10/Materials | Discovered new exit (range 13) 612 | -10/Materials | Identified exit to Materials 632 | -10/Materials | Learned location of 2 exits from Mines 643 | -10/Materials | Learned 4 Subcaves zone layouts 644 | -10/Materials | Learned location of 2 exits from Subcaves 645 | -10/Materials | Identified exit to Subcaves 653 | -10/Materials | Learned Storage machine intel 975 | -10/Materials | Repaired Lgt. Cannon 1150 | -10/Materials | Entered Mines 1152 | -10/Mines | Identified exit to Exiles 1213 | -10/Mines | Learned 2 Materials zone layouts 1222 | -10/Mines | Learned location of Storage (-9) 1246 | -10/Mines | Deemed a non-threat by the Exiles lab entrance 1350 | -10/Mines | Entered Exiles 1350 | -10/Exiles | Found Exiles lab destroyed 1594 | -10/Exiles | Opened EX-Vault 1603 | -10/Exiles | Found Supersonic Drone Bay 1806 | -10/Exiles | Learned location of Zion (-6) 1860 | -10/Exiles | Discovered new exit (range 12) 1880 | -10/Exiles | Entered Mines 1880 | -9/Mines | Accompanied by 3 allies 1881 | -9/Mines | Identified exit to Materials 1892 | -9/Mines | Met a Derelict bent on vengeance 1909 | -9/Mines | Discovered exit to Materials (range 11) 1945 | -9/Mines | YI-UF0 nonchalantly dropped a Grenade Launcher on the ground 2045 | -9/Mines | Murdered YI-UF0 2080 | -9/Mines | Entered Materials 2080 | -8/Materials | Evolved 4 slots: Propulsion x1, Utility x3 2369 | -8/Materials | Discovered new exit (range 14) 2757 | -8/Materials | Discovered new exit (range 17) 2760 | -8/Materials | Met 7R-MNS 2768 | -8/Materials | Learned Factory stockpile data 2824 | -8/Materials | Learned location of 1 exit from Lower Caves 2904 | -8/Materials | Identified exit to Factory 2946 | -8/Materials | Learned location of 1 exit from Extension 2986 | -8/Materials | Learned Storage security intel 3023 | -8/Materials | Learned 2 Storage zone layouts 3070 | -8/Materials | Entered Factory 3070 | -7/Factory | Evolved 2 slots: Propulsion x1, Utility x1 3071 | -7/Factory | Caught up to 7R-MNS 3071 | -7/Factory | Identified exit to Factory 3362 | -7/Factory | Build established: Scavenger-Mutant 3691 | -7/Factory | Discovered exit to Factory (range 13) 3960 | -7/Factory | Build established: Mutant 4481 | -7/Factory | Sucked down chute 4481 | -7/Factory | Entered Waste 4482 | -7/Waste | Met a frightened Derelict 4491 | -7/Waste | Spotted C-40 Crusher 4505 | -7/Waste | Crushed by Compactor (0 parts destroyed, 1 dropped) 4528 | -7/Waste | Spotted C-40 Crusher 4540 | -7/Waste | Crushed by Compactor (0 parts destroyed, 1 dropped) 4544 | -7/Waste | Spotted C-40 Crusher 4552 | -7/Waste | Crushed by Compactor (0 parts destroyed, 1 dropped) 4557 | -7/Waste | Spotted C-40 Crusher 4564 | -7/Waste | Crushed by Compactor (1 part destroyed) 4570 | -7/Waste | Spotted C-40 Crusher 4608 | -7/Waste | Spotted C-40 Crusher 4610 | -7/Waste | Discovered new exit (range 14) 4630 | -7/Waste | Entered Factory 5166 | -7/Factory | Destroyed 10 combat bots 5270 | -7/Factory | Discovered exit to Factory (range 6) 5707 | -7/Factory | Discovered exit to Factory (range 11) 6228 | -7/Factory | High security lockdown imminent 6258 | -7/Factory | Identified exit to Garrison 6259 | -7/Factory | Entered Garrison 6281 | -7/Garrison | Installed Relay Interface Framework 6443 | -7/Garrison | Garrison Relay disabled 6569 | -7/Garrison | Core integrity fell below 50% 6645 | -7/Garrison | Triggered checkpoint 6683 | -7/Garrison | Triggered checkpoint 6887 | -7/Garrison | Build established: Scavenger-Mutant 7011 | -7/Garrison | Rescued a captive Derelict 7025 | -7/Garrison | Lost 12 parts (1p4n5u2w) 7092 | -7/Garrison | Discovered new exit (range 8) 7151 | -7/Garrison | Triggered checkpoint 7170 | -7/Garrison | Garrison Relay disabled 7197 | -7/Garrison | Build established: Mutant 7278 | -7/Garrison | Core integrity fell below 20% 7515 | -7/Garrison | Discovered new exit (range 10) 7545 | -7/Garrison | Triggered checkpoint 7589 | -7/Garrison | Build established: Scavenger-Mutant 7677 | -7/Garrison | Discovered new exit (range 8) 7759 | -7/Garrison | Garrison Relay disabled 7946 | -7/Garrison | Found embedded Infiltrators 8239 | -7/Garrison | Entered Factory 8239 | -7/Factory | Accompanied by 1 ally 8562 | -7/Factory | High security lockdown imminent 8582 | -7/Factory | Discovered new exit (range 80) 8589 | -7/Factory | System corruption reached 10% 8642 | -7/Factory | High security lockdown engaged 8712 | -7/Factory | Build established: Mutant 8736 | -7/Factory | Entered Lower Caves 8737 | -7/Lower Caves | Identified exit to Lower Caves 8916 | -7/Lower Caves | Found DCF Scrap (11 items) 8966 | -7/Lower Caves | Learned Factory trap positions 8967 | -7/Lower Caves | Encountered a Warlord checkpoint 9098 | -7/Lower Caves | Destroyed self with Grenade Launcher Last Messages --------------- 08959_ Acquired 54 matter. 08962_ System corrupted: Energy discharge (-84). 08966_ Acquired derelict log, extracted data. Data stored: Factory trap records. 08967_ RI-ON3(M): "If you spot any more Unaware lurking around the area, let us know." 08968_ Searching scrap... 08968_ Found Mak. Light Armor Plating. 08968_ Found Melee Analysis Suite. 08968_ Found Riot Gun. 08968_ Found 45 Matter. 08969_ Acquired 27 matter. 08976_ Dropped Imp. Heat Sink. 08976_ Acquired Melee Analysis Suite. 08990_ System corrupted: Component data lost. 09006_ Acquired 10 matter. 09014_ System corrupted: Energy discharge (-92). 09052_ System corrupted: Matter fused (-7). 09068_ System corrupted: Heat flow error (+167). 09096_ S-27 Virus destroyed. Map ----- +----------------------------------------------------+ | ??????????????????????????## #####????## #???? | | ?????????????????????????## #?### #?### | | ????????????????????###### ## #?# | | ??????????????????### #?# # | | ??????????????????# ??# # | | ???????????????????# ???# # | | ???????????????????# #???# # | | ????????????????????# ##??# # | | ?????????????????????# ##?# # | | ??????????????????????# ### # | | ?????????????????????## ## # | | ?????????????????????# ## | | ?????????????????## ## ## | | ?????????????????# #### ### | | ???????????????# $ ##?#### ##?? | | ???????????????? #### ###??###?## | | ????????????????????# ##?????# | | ????????????????????# #### #????## | | ????????????????????# ###????## ####### | | ????????????????????## ????????# ### | | ??????????????# ?????## #?######### #?# | | ??????????????# ##??## ### ## #?# ## | | ??????????????# ### #?# ### | | ???????????????? ss ### #?# | | ????????????????? %* % #?# | | ?????????????????? ### @ #### #?### | | ???????????????????????# ##??## ######???# | | ???????????????????????## #???## #????????# | | ???????????????????????## #??# #????????# | | ??????????????????????## ##?# ###????????# | | ?????????????????????## ###?## #???????????# | | ????????????????????## ##???# #?????###???# | | ???????????????????## #??### #???# #???# | | ???????????? ## #### #??# #???? | | ????????????# ## #??# #????? | | ????????????# ## #?# #?????? | | ???????????????# ## #???????? | | ???????????????# ## ## #???????? | | ???????????????# #?####?## ###???????? | | ???????????????##????????######## ####?????????? | | ????????????????????????????????# ##????????????? | | ????????????????????????????????# #####?????????# | | ????????????????????????????##### ##????????# | | ???????????????########????## ## ##??????## | | ???????????????# ##???# ##????## | | ???????????????# #???## ###### | | ???????????????# ##???# | | ???????????????# ##?## | | ???????????????# ### | | ???????????????# ## """""" """"" | +----------------------------------------------------+ Best States ------------- Heat Dissipation 83 Energy Generation 16 Energy Capacity 490 Matter Stores 300 Matter Capacity 300 Sight Range 16 Terrain Scan Range 16 Terrain Scan Density 210 Armor Coverage 825 Resistance: KI 30 Resistance: TH 15 Resistance: EM 25 Evasion (%) 55 Melee Accuracy 16 Recoil Reduction 4 Force Boost 20 Relay Coupler Types 1 Relay Coupler Value 55 Item Schematics ----------------- Huge Storage Unit | -8/Materials | Hacked Robot Schematics ------------------ None Fabricated ------------ Nothing Alien Tech Used ----------------- None Achievements -------------- None Challenges ------------ None Game ------ Seed TimingSuperdenseCutter Manual? 0 Play Time 01:15:52 Cumulative 275.6 hours Start 2024.10.26 @ 07:35:22 End 2024.10.28 @ 00:47:22 Sessions 7 Manual Loads 0 Difficulty Rogue Special Mode None Game No. 122 Rogue 122 Adventurer 0 Explorer 0 Win Type - Total 10 Types 6/0/3/1/0/0/0/0/0 Lore% 75 Gallery% 75 Achievement% 65 Wizard Run 0 Options --------- Layout 0 ASCII 0 Keyboard 1 Movement Numpad Keybinds 0 Fullscreen 2 Font 18/SmallcapsGlow Map View 76x50 Zoom Use 0% Tactical HUD 1 Map Filters NONE Filters NONE Steam 1 RUN: c0af4d82-b46a-4f1e-bcf0-aef11b909094